bitfinex-derivatives/quotes_SOLF0:USTF0_20250424
["timestamp","ask_amount","ask_price","bid_price","bid_amount"]
[1745508730683,26.04,149.69,149.61,48.15669593]
[1745508731480,32.7185,149.69,149.61,48.15669593]
[1745508731981,6.6789,149.68,149.65,6.6798]
[1745508732183,26.04,149.69,149.61,48.15669593]
[1745508732384,26.04,149.69,149.61,1.9559]
[1745508732986,22.20259593,149.68,149.58,26.04]
[1745508733183,6.6801,149.65,149.58,26.04]
[1745508733483,32.7201,149.65,149.58,26.04]
[1745508733982,26.04,149.65,149.56,20.43204593]
[1745508734183,46.20079593,149.65,149.56,0.27125]
[1745508734381,6.6812,149.63,149.56,0.27125]
[1745508734575,26.04,149.65,149.57,20.16079593]
[1745508735694,26.04,149.65,149.56,0.27125]
[1745508736181,20.16079593,149.64,149.56,0.27125]
[1745508736684,20.16079593,149.64,149.56,6.95525]
[1745508736880,20.16079593,149.64,149.56,0.27125]
[1745508737086,20.16079593,149.61,149.56,0.27125]
[1745508737388,20.16079593,149.61,149.5,28.0154]
[1745508737389,28.0834,149.6,149.5,28.0154]
[1745508737587,20.16079593,149.58,149.47,26.02]
[1745508737884,20.16079593,149.58,149.5,6.6866]
[1745508738084,20.16079593,149.58,149.46,3.951]
[1745508738286,28.0834,149.6,149.48,20.16079593]
[1745508738486,28.0834,149.6,149.51,20.16079593]
[1745508738683,28.0834,149.6,149.48,46.20079593]
[1745508738885,20.16079593,149.58,149.48,26.04]
[1745508739489,20.16079593,149.58,149.46,360.951]
[1745508739689,6.6847,149.55,149.52,6.6858]
[1745508739893,26.04,149.54,149.52,6.6858]
[1745508741588,26.04,149.54,149.51,6.6862]
[1745508741887,26.04,149.54,149.46,3.951]
[1745508742084,32.7251,149.54,149.5,6.6865]
[1745508742390,26.04,149.54,149.46,3.951]
[1745508742586,26.04,149.54,149.53,6.6854]
[1745508742789,26.04,149.57,149.5,20.16079593]
[1745508742984,26.04,149.57,149.51,1.881]
[1745508743184,26.04,149.6,149.53,20.16079593]
[1745508743482,26.04,149.6,149.56,20.16079593]
[1745508743687,26.04,149.6,149.54,1.9937]
[1745508743891,26.04,149.6,149.58,6.6829]
[1745508744084,26.04,149.6,149.54,1.9937]
[1745508744284,6.6831,149.59,149.55,6.6843]
[1745508744485,26.04,149.6,149.55,6.6843]
[1745508744990,26.04,149.6,149.53,20.16079593]
[1745508745492,26.04,149.63,149.57,6.6834]
[1745508745688,26.04,149.63,149.54,26.04]
[1745508745990,6.6816,149.62,149.54,26.04]
[1745508746594,6.682,149.61,149.57,6.6834]
[1745508746891,26.04,149.63,149.54,26.04]
[1745508748792,32.7213,149.63,149.59,6.6827]
[1745508748990,32.7213,149.63,149.54,26.04]
[1745508749692,26.04,149.63,149.54,26.04]
[1745508749899,26.04,149.63,149.57,6.6834]
[1745508750294,26.04,149.63,149.54,26.04]
[1745508750595,26.04,149.63,149.52,22.22999593]
[1745508751398,26.04,149.63,149.54,6.6846]
[1745508751600,2.0314,149.62,149.52,2.0692]
[1745508751900,6.683,149.59,149.52,2.0692]
[1745508752199,26.04,149.58,149.52,2.0692]
[1745508752502,26.04,149.58,149.55,6.6841]
[1745508752698,26.04,149.58,149.52,2.0692]
[1745508753199,26.04,149.58,149.56,6.6838]
[1745508753401,26.04,149.58,149.52,2.0692]
[1745508753699,32.7233,149.58,149.52,2.0692]
[1745508753899,26.04,149.58,149.52,2.0692]
[1745508754198,26.04,149.58,149.52,22.22999593]
[1745508754804,26.04,149.58,149.56,6.6838]
[1745508755099,26.04,149.58,149.52,2.0692]
[1745508755503,6.6839,149.57,149.53,6.6853]
[1745508755803,6.6839,149.57,149.51,1.881]
[1745508755804,26.04,149.58,149.51,1.881]
[1745508756003,32.7234,149.58,149.54,6.6847]
[1745508756603,6.6837,149.57,149.54,6.6847]
[1745508757303,6.6841,149.56,149.53,6.6853]
[1745508758305,26.04,149.58,149.51,1.881]
[1745508759102,26.04,149.58,149.52,20.16079593]
[1745508759302,26.04,149.58,149.52,22.20499593]
[1745508759605,26.04,149.58,149.56,6.6839]
[1745508759904,32.7233,149.58,149.54,6.6847]
[1745508760199,26.04,149.58,149.51,1.881]
[1745508761105,26.04,149.58,149.53,6.6854]
[1745508761308,26.04,149.58,149.51,1.881]
[1745508761706,26.04,149.58,149.53,6.685]
[1745508762003,26.04,149.58,149.51,1.881]
[1745508762204,32.7234,149.58,149.55,6.6843]
[1745508762404,26.04,149.58,149.51,1.881]
[1745508762604,46.20079593,149.58,149.48,2.0442]
[1745508762804,6.6853,149.54,149.48,2.0442]
[1745508763100,32.7253,149.54,149.48,2.0442]
[1745508763310,26.04,149.54,149.51,6.6861]
[1745508763609,26.04,149.54,149.48,2.0442]
[1745508764109,26.04,149.54,149.51,6.686]
[1745508764510,26.04,149.54,149.48,2.0442]
[1745508765010,26.04,149.54,149.48,22.20499593]
[1745508765412,26.04,149.54,149.48,2.0442]
[1745508766107,26.04,149.54,149.52,6.6855]
[1745508766314,26.04,149.54,149.48,2.0442]
[1745508766707,26.04,149.54,149.52,6.6856]
[1745508767010,26.04,149.54,149.48,2.0442]
[1745508767517,26.04,149.54,149.53,6.6854]
[1745508768223,26.04,149.54,149.52,6.6857]
[1745508768718,26.04,149.57,149.56,6.6841]
[1745508769622,6.683,149.59,149.48,22.20499593]
[1745508769623,26.04,149.59,149.58,6.6831]
[1745508769921,26.04,149.59,149.51,20.16079593]
[1745508770120,26.04,149.59,149.57,6.6834]
[1745508770420,6.6833,149.58,149.5,26.04]
[1745508770718,6.6833,149.58,149.55,6.6842]
[1745508770921,26.04,149.59,149.5,26.04]
[1745508772124,26.04,149.59,149.57,6.6836]
[1745508772320,28.0714,149.62,149.51,20.16079593]
[1745508772621,26.04,149.62,149.54,20.16079593]
[1745508772819,26.04,149.62,149.55,3.9278]
[1745508773416,507.02,149.65,149.56,20.16079593]
[1745508773826,513.7003,149.65,149.61,6.6816]
[1745508774014,507.02,149.65,149.55,3.9278]
[1745508774321,6.6807,149.64,149.6,6.6819]
[1745508775120,6.6811,149.63,149.6,6.6819]
[1745508775324,507.02,149.65,149.59,6.6825]
[1745508775624,6.6813,149.63,149.55,3.9278]
[1745508776027,507.02,149.65,149.55,3.9278]
[1745508776226,6.6809,149.64,149.55,3.9278]
[1745508776525,507.02,149.65,149.6,6.682]
[1745508776726,6.6809,149.64,149.55,3.9278]
[1745508777026,6.6809,149.64,149.6,6.682]
[1745508777323,6.681,149.63,149.55,3.9278]
[1745508777928,6.6806,149.64,149.55,3.9278]
[1745508778224,507.02,149.65,149.62,6.681]
[1745508778523,507.02,149.65,149.55,3.9278]
[1745508778828,507.02,149.65,149.6,6.6822]
[1745508779127,6.6807,149.64,149.55,3.9278]
[1745508780128,507.02,149.65,149.55,3.9278]
[1745508781328,507.02,149.65,149.61,6.6816]
[1745508782027,507.02,149.65,149.62,6.6813]
[1745508782231,507.02,149.65,149.55,24.08859593]
[1745508782524,88.15628869,149.69,149.58,20.16079593]
[1745508782728,88.15628869,149.69,149.59,27.9213]
[1745508782929,88.15628869,149.69,149.61,20.16079593]
[1745508783130,26.04,149.69,149.62,3.9478]
[1745508783729,26.04,149.69,149.66,6.6794]
[1745508783932,26.04,149.69,149.62,3.9478]
[1745508784228,26.04,149.69,149.63,26.02]
[1745508784430,26.04,149.69,149.59,358.8813]
[1745508784431,20.16079593,149.68,149.59,358.8813]
[1745508784630,20.16079593,149.68,149.59,27.9013]
[1745508784832,20.16079593,149.68,149.63,6.6809]
[1745508785030,20.16079593,149.68,149.59,27.9013]
[1745508785330,20.16079593,149.68,149.63,6.6808]
[1745508785526,20.16079593,149.68,149.59,27.9013]
[1745508785928,26.04,149.69,149.65,6.6798]
[1745508786124,26.04,149.69,149.59,27.9013]
[1745508786433,26.04,149.69,149.6,1.901]
[1745508786627,507.26,149.72,149.61,20.16079593]
[1745508786828,481.24,149.72,149.64,20.16079593]
[1745508787032,26.02,149.73,149.64,20.16079593]
[1745508787033,26.02,149.73,149.72,6.6769]
[1745508787334,26.02,149.76,149.65,3.9363]
[1745508787533,26.02,149.75,149.71,6.6771]
[1745508787730,26.02,149.75,149.65,3.9363]
[1745508787933,46.18079593,149.75,149.65,3.9363]
[1745508788135,46.18079593,149.75,149.68,6.6785]
[1745508788336,46.18079593,149.75,149.65,3.9363]
[1745508788638,6.6763,149.74,149.69,6.678]
[1745508789035,6.6763,149.74,149.65,3.9363]
[1745508789235,6.6763,149.74,149.7,6.6778]
[1745508789841,20.16079593,149.78,149.65,3.9363]
[1745508790038,26.02,149.76,149.67,20.16079593]
[1745508790238,26.02,149.76,149.67,22.23029593]
[1745508790437,26.02,149.76,149.67,2.0695]
[1745508790735,20.16079593,149.75,149.67,2.0695]
[1745508790940,20.16079593,149.75,149.71,6.677]
[1745508791344,6.6768,149.73,149.7,6.6778]
[1745508791529,26.02,149.72,149.65,3.9363]
[1745508792238,26.02,149.72,149.71,6.6774]
[1745508794742,26.02,149.76,149.65,3.9363]
[1745508794935,26.02,149.76,149.67,20.16079593]
[1745508795136,26.02,149.76,149.68,26.02]
[1745508796540,26.02,149.76,149.72,6.6766]
[1745508796841,26.02,149.76,149.68,26.02]
[1745508797540,26.02,149.76,149.69,2.0213]
[1745508797938,6.6763,149.74,149.69,6.6782]
[1745508798134,26.02,149.76,149.68,26.02]
[1745508799041,26.02,149.76,149.73,6.6763]
[1745508799339,26.02,149.76,149.68,26.02]
[1745508799541,26.02,149.76,149.75,6.6756]
[1745508799741,509.2249,149.79,149.75,6.6756]
[1745508799937,507.16,149.79,149.7,20.16079593]
[1745508800143,26.0,149.79,149.71,3.8677]
[1745508800338,26.0,149.83,149.73,20.16079593]
[1745508800738,26.0,149.89,149.79,20.16079593]
[1745508801040,20.16079593,149.88,149.79,26.0]
[1745508801239,20.16079593,149.88,149.8,6.6731]
[1745508801443,20.16079593,149.88,149.76,26.0]
[1745508801741,20.16079593,149.88,149.73,377.16079593]
[1745508801945,20.16079593,149.88,149.75,26.0]
[1745508802143,20.16079593,149.88,149.8,6.6733]
[1745508802337,20.16079593,149.88,149.75,26.0]
[1745508802644,6.6725,149.83,149.79,6.6736]
[1745508802845,26.0,149.83,149.79,6.6736]
[1745508803045,26.0,149.83,149.75,26.0]
[1745508803847,26.0,149.83,149.8,6.673]
[1745508804042,26.0,149.83,149.75,26.0]
[1745508804347,6.6726,149.82,149.75,26.0]
[1745508804853,26.0,149.83,149.75,26.0]
[1745508805544,32.6723,149.83,149.79,6.6736]
[1745508805945,26.0,149.83,149.79,6.6736]
[1745508806145,32.6722,149.83,149.79,6.6736]
[1745508806345,26.0,149.83,149.75,26.0]
[1745508806851,32.6721,149.83,149.79,6.6735]
[1745508807046,26.0,149.83,149.75,26.0]
[1745508807442,6.6737,149.8,149.75,26.0]
[1745508807646,26.0,149.83,149.73,20.16079593]
[1745508807848,6.6745,149.78,149.75,6.6755]
[1745508808046,25.98,149.79,149.73,20.16079593]
[1745508808452,6.6743,149.78,149.75,6.6754]
[1745508808750,25.98,149.79,149.73,20.16079593]
[1745508809053,32.6541,149.79,149.76,6.6752]
[1745508809351,25.98,149.79,149.73,20.16079593]
[1745508809652,6.6743,149.78,149.75,6.6754]
[1745508809854,25.98,149.79,149.73,20.16079593]
[1745508810152,32.6541,149.79,149.76,6.6749]
[1745508810450,25.98,149.79,149.73,20.16079593]
[1745508810651,6.6743,149.78,149.75,6.6754]
[1745508810954,6.6743,149.78,149.73,20.16079593]
[1745508811150,2.0612,149.82,149.73,20.16079593]
[1745508811350,25.98,149.81,149.73,20.16079593]
[1745508811853,6.6741,149.79,149.76,6.6749]
[1745508812051,25.98,149.81,149.76,6.6749]
[1745508812253,25.98,149.81,149.73,20.16079593]
[1745508812453,25.98,149.81,149.74,6.6756]
[1745508812652,25.98,149.81,149.72,27.9963]
[1745508812853,6.674,149.79,149.72,27.9963]
[1745508813355,6.674,149.79,149.76,6.6749]
[1745508814058,25.98,149.81,149.73,20.16079593]
[1745508814457,32.6532,149.81,149.77,6.6743]
[1745508814654,32.6532,149.81,149.73,20.16079593]
[1745508815155,25.98,149.81,149.76,20.16079593]
[1745508815655,32.6532,149.81,149.77,19.24150199]
[1745508815855,32.6532,149.81,149.77,12.56720199]
[1745508816256,32.6532,149.81,149.78,6.674]
[1745508816656,25.98,149.81,149.77,12.56720199]
[1745508817353,32.6531,149.81,149.78,6.674]
[1745508817654,25.98,149.81,149.75,12.56720199]
[1745508818458,6.6736,149.8,149.77,6.6745]
[1745508818661,25.98,149.81,149.73,12.56720199]
[1745508819457,6.6734,149.8,149.78,6.6742]
[1745508819656,25.98,149.81,149.78,6.6742]
[1745508820253,25.98,149.81,149.73,12.56720199]
[1745508820756,6.6741,149.79,149.73,12.56720199]
[1745508821156,38.54720199,149.81,149.73,12.56720199]
[1745508821358,6.6744,149.78,149.75,6.6754]
[1745508821561,38.54720199,149.81,149.75,6.6754]
[1745508821758,12.56720199,149.79,149.71,12.56720199]
[1745508821959,6.675,149.77,149.74,6.6758]
[1745508822150,25.98,149.77,149.71,12.56720199]
[1745508822350,32.655,149.77,149.74,6.6758]
[1745508822549,32.655,149.77,149.71,12.56720199]
[1745508823054,25.98,149.77,149.71,12.56720199]
[1745508823450,25.98,149.77,149.74,6.6757]
[1745508824159,32.6549,149.77,149.75,6.6756]
[1745508824455,32.6549,149.77,149.71,12.56720199]
[1745508824658,6.6754,149.76,149.71,12.56720199]
[1745508825058,25.98,149.77,149.71,12.56720199]
[1745508825356,32.6549,149.77,149.75,6.6755]
[1745508825855,25.98,149.77,149.76,6.6752]
[1745508826059,6.674,149.79,149.73,12.56720199]
[1745508826260,25.98,149.8,149.75,12.56720199]
[1745508826560,25.98,149.8,149.78,6.6739]
[1745508826859,25.98,149.8,149.75,12.56720199]
[1745508827060,25.98,149.8,149.77,12.56720199]
[1745508827261,32.6522,149.83,149.73,18.51620199]
[1745508827457,32.6522,149.83,149.78,12.56720199]
[1745508827658,25.98,149.83,149.78,12.56720199]
[1745508827859,25.98,149.83,149.82,6.6725]
[1745508828159,25.98,149.83,149.78,12.56720199]
[1745508828360,25.98,149.83,149.74,12.56720199]
[1745508828962,25.98,149.83,149.77,6.6746]
[1745508829462,25.98,149.83,149.76,12.56720199]
[1745508830161,32.6523,149.83,149.8,6.6733]
[1745508830460,6.6729,149.82,149.79,6.6736]
[1745508830955,25.98,149.83,149.79,6.6736]
[1745508831562,25.98,149.83,149.8,6.6731]
[1745508831959,6.6728,149.82,149.79,6.6736]
[1745508832163,6.6728,149.82,149.75,25.96]
[1745508832456,6.6736,149.8,149.77,6.6744]
[1745508833061,6.674,149.79,149.77,6.6744]
[1745508833261,25.98,149.83,149.76,6.6749]
[1745508833464,25.98,149.83,149.74,12.56720199]
[1745508833663,6.6746,149.78,149.74,12.56720199]
[1745508833862,25.96,149.79,149.75,6.6752]
[1745508834063,25.96,149.79,149.73,14.56020199]
[1745508834562,32.634,149.79,149.73,14.56020199]
[1745508834765,32.634,149.79,149.76,6.6747]
[1745508835070,25.96,149.79,149.73,14.56020199]
[1745508835359,25.96,149.79,149.78,6.6743]
[1745508835564,25.96,149.82,149.75,12.56720199]
[1745508835761,6.6738,149.8,149.75,12.56720199]
[1745508835960,25.96,149.82,149.77,6.6745]
[1745508836159,38.52720199,149.82,149.73,14.56020199]
[1745508836355,6.6743,149.79,149.73,14.56020199]
[1745508836557,38.52720199,149.82,149.76,6.6751]
[1745508837066,6.6741,149.79,149.76,6.6751]
[1745508838066,6.6736,149.8,149.77,6.6747]
[1745508838266,6.6736,149.8,149.73,14.56020199]
[1745508838468,25.96,149.82,149.73,14.56020199]
[1745508838767,6.6735,149.8,149.73,14.56020199]
[1745508839063,6.6735,149.8,149.75,12.56720199]
[1745508839656,25.96,149.82,149.75,12.56720199]
[1745508839865,25.96,149.82,149.77,12.56720199]
[1745508840067,25.96,149.82,149.8,6.6732]
[1745508840267,25.96,149.82,149.77,12.56720199]
[1745508840465,480.7,149.86,149.77,12.56720199]
[1745508840662,25.96,149.85,149.77,12.56720199]
[1745508840860,6.6721,149.83,149.77,12.56720199]
[1745508841062,25.96,149.85,149.79,12.56720199]
[1745508841568,6.6719,149.84,149.79,12.56720199]
[1745508841769,25.96,149.85,149.79,12.56720199]
[1745508842168,6.6723,149.83,149.8,6.6731]
[1745508842372,25.96,149.85,149.77,12.56720199]
[1745508842766,6.673,149.81,149.78,6.674]
[1745508843067,25.96,149.85,149.75,16.47440199]
[1745508843259,6.6741,149.79,149.76,6.6749]
[1745508843461,25.96,149.81,149.76,6.6749]
[1745508844373,25.96,149.81,149.74,12.56720199]
[1745508844374,25.96,149.81,149.74,19.24290199]
[1745508844567,25.96,149.81,149.73,1.993]
[1745508845069,25.96,149.81,149.75,6.6754]
[1745508845273,25.96,149.81,149.73,1.993]
[1745508845462,25.96,149.81,149.74,6.6757]
[1745508845667,25.96,149.81,149.73,1.993]
[1745508845966,6.6755,149.76,149.73,8.6694]
[1745508846174,25.96,149.77,149.7,12.56720199]
[1745508846465,25.96,149.77,149.7,6.6778]
[1745508846671,12.56720199,149.76,149.68,18.51680199]
[1745508846871,25.96,149.77,149.68,18.51680199]
[1745508847567,6.6754,149.76,149.72,6.6769]
[1745508847772,6.6754,149.76,149.7,12.56720199]
[1745508848071,25.96,149.77,149.7,12.56720199]
[1745508848272,6.6757,149.75,149.72,6.6769]
[1745508848773,6.6757,149.75,149.73,6.6765]
[1745508849469,6.6763,149.74,149.72,6.6768]
[1745508849676,25.96,149.77,149.7,12.56720199]
[1745508849974,25.96,149.77,149.72,6.6767]
[1745508850176,25.96,149.8,149.7,12.56720199]
[1745508850377,25.96,149.8,149.71,25.96]
[1745508850679,25.96,149.8,149.76,12.56720199]
[1745508851171,25.96,149.83,149.76,12.56720199]
[1745508851377,25.96,149.83,149.73,12.56720199]
[1745508851378,25.96,149.83,149.78,12.56720199]
[1745508851774,25.96,149.83,149.81,6.6728]
[1745508852077,6.6714,149.85,149.78,12.56720199]
[1745508852277,6.6714,149.85,149.81,6.6726]
[1745508852770,6.6716,149.84,149.81,6.6726]
[1745508853071,506.66,149.86,149.8,6.6734]
[1745508853375,6.6724,149.83,149.78,12.56720199]
[1745508853571,6.6724,149.83,149.75,46.06681545]
[1745508853773,506.66,149.86,149.75,46.06681545]
[1745508853975,6.6727,149.82,149.75,46.06681545]
[1745508854170,32.6327,149.82,149.75,46.06681545]
[1745508854676,32.6327,149.82,149.78,6.674]
[1745508854975,32.6327,149.82,149.75,46.06681545]
[1745508855168,25.96,149.82,149.79,6.6737]
[1745508855771,25.96,149.82,149.75,46.06681545]
[1745508855772,25.96,149.82,149.81,6.6729]
[1745508855972,32.6312,149.85,149.81,6.6729]
[1745508856378,6.6717,149.84,149.81,6.6729]
[1745508856579,25.96,149.85,149.81,6.6729]
[1745508856880,25.96,149.85,149.78,20.10681545]
[1745508857981,25.96,149.85,149.83,6.6717]
[1745508858377,25.96,149.85,149.78,20.10681545]
[1745508858579,25.96,149.85,149.82,6.6721]
[1745508858778,25.96,149.85,149.78,20.10681545]
[1745508859082,6.671,149.86,149.82,6.6721]
[1745508859484,6.671,149.86,149.78,20.10681545]
[1745508859783,25.94,149.9,149.81,20.10681545]
[1745508859983,25.94,149.9,149.81,46.04681545]
[1745508860180,25.94,149.9,149.87,6.6699]
[1745508860381,25.94,149.9,149.84,20.10681545]
[1745508862094,32.6091,149.9,149.86,6.6703]
[1745508862294,32.6091,149.9,149.84,20.10681545]
[1745508862494,25.94,149.9,149.84,20.10681545]
[1745508862796,25.94,149.9,149.88,6.6696]
[1745508863090,25.94,149.9,149.84,20.10681545]
[1745508863395,25.94,149.9,149.89,6.6694]
[1745508863595,506.5,149.93,149.87,20.10681545]
[1745508863893,6.6683,149.92,149.89,6.6693]
[1745508864097,506.5,149.93,149.87,20.10681545]
[1745508864298,25.94,149.93,149.87,20.10681545]
[1745508864493,25.94,149.96,149.9,20.10681545]
[1745508865195,25.94,149.96,149.88,5.8406]
[1745508865394,20.10681545,149.95,149.83,20.10681545]
[1745508865597,22.01091545,149.95,149.83,20.10681545]
[1745508866196,22.01091545,149.95,149.85,6.6709]
[1745508866498,22.01091545,149.95,149.83,20.10681545]
[1745508866798,6.6693,149.9,149.83,20.10681545]
[1745508866996,32.6093,149.9,149.83,20.10681545]
[1745508867196,25.94,149.9,149.83,20.10681545]
[1745508867795,25.94,149.9,149.88,6.6696]
[1745508868194,25.94,149.9,149.83,20.10681545]
[1745508868398,25.94,149.9,149.88,6.6697]
[1745508868595,25.94,149.9,149.83,20.10681545]
[1745508868997,25.94,149.9,149.88,6.6696]
[1745508869295,25.94,149.9,149.83,20.10681545]
[1745508869597,32.6092,149.9,149.83,20.10681545]
[1745508869998,32.6092,149.9,149.86,6.6703]
[1745508870195,32.6092,149.9,149.83,20.10681545]
[1745508870399,6.6696,149.89,149.83,20.10681545]
[1745508870701,25.94,149.9,149.83,20.10681545]
[1745508871098,25.94,149.9,149.85,6.6711]
[1745508871295,25.94,149.9,149.82,3.8997]
[1745508871700,25.94,149.9,149.84,6.6713]
[1745508871902,25.94,149.9,149.82,3.8997]
[1745508872399,6.6707,149.87,149.82,3.8997]
[1745508872596,25.94,149.9,149.82,3.8997]
[1745508872797,25.94,149.9,149.84,6.6713]
[1745508873000,25.94,149.9,149.82,3.8997]
[1745508873502,25.94,149.9,149.85,6.6708]
[1745508873903,6.6696,149.89,149.85,6.6708]
[1745508874198,25.94,149.9,149.82,3.8997]
[1745508874902,25.94,149.93,149.85,20.10681545]
[1745508875202,6.6681,149.92,149.85,20.10681545]
[1745508875405,25.94,149.93,149.85,20.10681545]
[1745508875702,6.6687,149.91,149.85,20.10681545]
[1745508875902,25.94,149.93,149.87,6.67]
[1745508876204,6.6693,149.9,149.85,20.10681545]
[1745508876399,25.94,149.93,149.85,26.77781545]
[1745508876598,25.94,149.93,149.85,20.10681545]
[1745508876996,25.94,149.93,149.88,6.6696]
[1745508877204,6.6685,149.91,149.85,20.10681545]
[1745508877505,6.6685,149.91,149.86,12.55156099]
[1745508877702,6.6685,149.91,149.88,6.6697]
[1745508879100,6.6685,149.91,149.89,6.6694]
[1745508879801,25.94,149.93,149.88,12.55156099]
[1745508880108,25.94,149.93,149.9,12.55156099]
[1745508880605,25.94,149.93,149.87,12.55156099]
[1745508881808,32.6078,149.93,149.89,6.669]
[1745508882109,25.94,149.93,149.87,12.55156099]
[1745508882309,25.94,149.93,149.89,12.55156099]
[1745508882511,32.6078,149.93,149.9,6.6685]
[1745508882706,32.6078,149.93,149.89,12.55156099]
[1745508882907,25.94,149.93,149.89,12.55156099]
[1745508883305,25.94,149.93,149.87,12.55156099]
[1745508884210,25.94,149.93,149.85,12.55156099]
[1745508884408,6.6696,149.89,149.86,6.6705]
[1745508884609,25.94,149.93,149.85,12.55156099]
[1745508884810,6.6687,149.91,149.85,12.55156099]
[1745508885009,25.94,149.93,149.89,12.55156099]
[1745508885313,32.6078,149.93,149.9,6.6688]
[1745508886112,25.94,149.93,149.9,6.6688]
[1745508886313,25.94,149.93,149.91,6.6684]
[1745508886614,32.6078,149.93,149.89,12.55156099]
[1745508886814,25.94,149.93,149.89,19.22076099]
[1745508887113,6.6683,149.92,149.89,19.22076099]
[1745508887814,32.6078,149.93,149.9,6.6689]
[1745508888515,6.6678,149.93,149.91,6.6685]
[1745508888712,6.6673,149.94,149.91,6.6685]
[1745508889517,25.92,149.96,149.91,12.55156099]
[1745508890114,32.5865,149.96,149.93,6.6674]
[1745508890316,25.92,149.96,149.91,12.55156099]
[1745508891316,32.5865,149.96,149.93,6.6675]
[1745508891616,25.92,149.96,149.91,12.55156099]
[1745508891914,6.6674,149.94,149.91,6.6682]
[1745508892109,6.6674,149.94,149.89,14.50006099]
[1745508892311,6.668,149.93,149.88,25.92]
[1745508893016,6.668,149.93,149.9,6.6686]
[1745508893208,6.6681,149.92,149.88,25.92]
[1745508893408,25.92,149.96,149.88,25.92]
[1745508893614,25.92,149.96,149.89,6.6691]
[1745508893813,6.6678,149.93,149.87,12.55156099]
[1745508894114,6.6678,149.93,149.89,6.6691]
[1745508894415,6.6682,149.92,149.89,6.6691]
[1745508894616,25.92,149.96,149.89,6.6691]
[1745508894817,25.92,149.96,149.9,6.6687]
[1745508895018,6.6678,149.93,149.9,6.6687]
[1745508895216,6.6678,149.93,149.87,12.55156099]
[1745508895413,25.92,149.96,149.87,12.55156099]
[1745508896019,6.6684,149.92,149.89,6.6693]
[1745508896213,6.6684,149.92,149.87,12.55156099]
[1745508896719,6.6684,149.92,149.89,6.669]
[1745508897022,6.6684,149.92,149.87,12.55156099]
[1745508897221,25.92,149.96,149.87,12.55156099]
[1745508897621,25.92,149.96,149.89,6.669]
[1745508897821,6.6683,149.92,149.87,12.55156099]
[1745508898122,25.92,149.96,149.9,6.6687]
[1745508898521,6.6679,149.93,149.87,12.55156099]
[1745508898711,6.6679,149.93,149.91,6.6685]
[1745508899123,25.92,149.96,149.87,12.55156099]
[1745508899321,25.92,149.96,149.9,6.6687]
[1745508899722,6.6679,149.93,149.87,12.55156099]
[1745508900223,6.6687,149.91,149.87,12.55156099]
[1745508900522,25.92,149.96,149.87,12.55156099]
[1745508900917,6.6681,149.92,149.9,6.6687]
[1745508901122,25.92,149.96,149.87,12.55156099]
[1745508901524,25.92,149.96,149.91,6.6682]
[1745508901921,6.6674,149.94,149.91,6.6682]
[1745508902128,25.92,149.96,149.87,12.55156099]
[1745508902426,6.6678,149.93,149.87,12.55156099]
[1745508902925,6.6676,149.93,149.89,12.55156099]
[1745508903723,6.6673,149.94,149.89,12.55156099]
[1745508903927,25.92,149.96,149.89,12.55156099]